[Event "Titled Tuesday Blitz February 28 Early 2023"]
[White "Roebers, Eline"]
[Black "Kuchava, Ana"]
[WhiteFideId "1058401"]
[BlackFideId "13605348"]
[WhiteElo "2559"]
[BlackElo "2001"]
[Result "0-1"]
[Round "01"]
[TimeControl "180+2"]
[Date "2023.02.28"]
[WhiteClock "0:00:10"]
[BlackClock "0:00:07"]

1. e4 {[%clk 0:02:55]}  c5 {[%clk 0:02:51]} 2. b4 {[%clk 0:02:52]}  cxb4 {[%clk 0:02:50]} 3. a3 {[%clk 0:02:52]}  bxa3 {[%clk 0:02:48]} 4. Nxa3 {[%clk 0:02:48]}  Nc6 {[%clk 0:02:43]} 5. d4 {[%clk 0:02:45]}  d5 {[%clk 0:02:43]} 6. e5 {[%clk 0:02:44]}  e6 {[%clk 0:02:37]} 7. c3 {[%clk 0:02:43]}  Nge7 {[%clk 0:02:30]} 8. f4 {[%clk 0:02:42]}  h5 {[%clk 0:02:24]} 9. Bd3 {[%clk 0:02:40]}  g6 {[%clk 0:02:16]} 10. Nf3 {[%clk 0:02:36]}  Nf5 {[%clk 0:02:15]} 11. g3 {[%clk 0:02:31]}  Bd7 {[%clk 0:02:14]} 12. Kf2 {[%clk 0:02:06]}  Be7 {[%clk 0:02:13]} 13. Nc2 {[%clk 0:01:52]}  a6 {[%clk 0:01:45]} 14. Ba3 {[%clk 0:01:50]}  b5 {[%clk 0:01:44]} 15. Bxe7 {[%clk 0:01:49]}  Qxe7 {[%clk 0:01:42]} 16. Bxb5 {[%clk 0:01:41]}  O-O {[%clk 0:01:40]} 17. Bd3 {[%clk 0:01:34]}  a5 {[%clk 0:01:39]} 18. h3 {[%clk 0:01:29]}  h4 {[%clk 0:01:27]} 19. gxh4 {[%clk 0:01:10]}  Nxh4 {[%clk 0:01:27]} 20. Rg1 {[%clk 0:01:10]}  Nxf3 {[%clk 0:01:16]} 21. Qxf3 {[%clk 0:01:09]}  Qh4+ {[%clk 0:01:17]} 22. Ke3 {[%clk 0:01:04]}  Kg7 {[%clk 0:01:05]} 23. Rg4 {[%clk 0:01:03]}  Qh6 {[%clk 0:00:56]} 24. Rag1 {[%clk 0:00:59]}  Ne7 {[%clk 0:00:53]} 25. Kd2 {[%clk 0:00:45]}  Rh8 {[%clk 0:00:47]} 26. h4 {[%clk 0:00:44]}  Kf8 {[%clk 0:00:45]} 27. c4 {[%clk 0:00:40]}  Bc6 {[%clk 0:00:37]} 28. c5 {[%clk 0:00:39]}  a4 {[%clk 0:00:35]} 29. Na3 {[%clk 0:00:25]}  Nf5 {[%clk 0:00:29]} 30. Bxf5 {[%clk 0:00:16]}  exf5 {[%clk 0:00:30]} 31. R4g3 {[%clk 0:00:14]}  Qxh4 {[%clk 0:00:30]} 32. e6 {[%clk 0:00:15]}  fxe6 {[%clk 0:00:26]} 33. Rxg6 {[%clk 0:00:14]}  Ra7 {[%clk 0:00:19]} 34. Rxe6 {[%clk 0:00:11]}  Rc7 {[%clk 0:00:09]} 35. Re5 {[%clk 0:00:07]}  Qf6 {[%clk 0:00:06]} 36. Rg5 {[%clk 0:00:06]}  Rh2+ {[%clk 0:00:05]} 37. Ke3 {[%clk 0:00:06]}  Re7 {[%clk 0:00:04]} 38. Rxf5 {[%clk 0:00:05]}  Qxf5 {[%clk 0:00:05]} 39. Qg3 {[%clk 0:00:03]}  Rh3 {[%clk 0:00:04]} 40. Kf2 {[%clk 0:00:02]}  Rxg3 {[%clk 0:00:04]} 41. Kxg3 {[%clk 0:00:03]}  Qg6+ {[%clk 0:00:04]} 42. Kf3 {[%clk 0:00:03]}  Rxe5 {[%clk 0:00:05]} 43. fxe5 {[%clk 0:00:03]}  Qd3+ {[%clk 0:00:05]} 44. Kf4 {[%clk 0:00:03]}  Qxa3 {[%clk 0:00:06]} 45. Kf5 {[%clk 0:00:04]}  Qb4 {[%clk 0:00:06]} 46. Ke6 {[%clk 0:00:05]}  Ke8 {[%clk 0:00:06]} 47. Kd6 {[%clk 0:00:06]}  a3 {[%clk 0:00:06]} 48. e6 {[%clk 0:00:07]}  a2 {[%clk 0:00:06]} 49. Kxc6 {[%clk 0:00:08]}  a1=Q {[%clk 0:00:07]} 50. Kd6 {[%clk 0:00:09]}  Qa6+ {[%clk 0:00:07]} 51. Ke5 {[%clk 0:00:09]}  Qe1+ {[%clk 0:00:07]} 52. Kxd5 {[%clk 0:00:10]}  Qa8+ {[%clk 0:00:06]} 53. Kc4 {[%clk 0:00:11]}  Qa4+ {[%clk 0:00:06]} 54. Kd5 {[%clk 0:00:10]}  Qd2 {[%clk 0:00:06]} 55. Kd6 {[%clk 0:00:09]}  Qdxd4+ {[%clk 0:00:07]} 56. Kc7 {[%clk 0:00:10]}  Qxc5+ {[%clk 0:00:07]} 57. Kb8 {[%clk 0:00:10]}  Qaa7# {[%clk 0:00:07]} 0-1


[Site "https://www.chess.com"]

[Event "Titled Tuesday Blitz February 28 Early 2023"]
[White "lisjakzlatko1"]
[Black "benny_aizenberg"]
[WhiteElo "2164"]
[BlackElo "2554"]
[Result "0-1"]
[Round "01"]
[TimeControl "180+2"]
[Date "2023.02.28"]
[WhiteClock "0:00:05"]
[BlackClock "0:01:23"]

1. e4 {[%clk 0:03:00]}  c5 {[%clk 0:02:57]} 2. b4 {[%clk 0:02:59]}  cxb4 {[%clk 0:02:56]} 3. Bb2 {[%clk 0:02:58]}  d5 {[%clk 0:02:54]} 4. exd5 {[%clk 0:02:57]}  Qxd5 {[%clk 0:02:54]} 5. d4 {[%clk 0:02:56]}  Nf6 {[%clk 0:02:51]} 6. c4 {[%clk 0:02:55]}  bxc3 {[%clk 0:02:48]} 7. Nxc3 {[%clk 0:02:55]}  Qa5 {[%clk 0:02:49]} 8. Nf3 {[%clk 0:02:51]}  e6 {[%clk 0:02:48]} 9. Bc4 {[%clk 0:02:44]}  Bb4 {[%clk 0:02:48]} 10. Rc1 {[%clk 0:02:44]}  O-O {[%clk 0:02:45]} 11. O-O {[%clk 0:02:43]}  b6 {[%clk 0:02:39]} 12. Qb3 {[%clk 0:02:32]}  Ba6 {[%clk 0:02:31]} 13. a3 {[%clk 0:02:22]}  Bxc4 {[%clk 0:02:20]} 14. Qxc4 {[%clk 0:02:15]}  Bxc3 {[%clk 0:02:20]} 15. Rxc3 {[%clk 0:02:12]}  Nbd7 {[%clk 0:02:15]} 16. Ne5 {[%clk 0:02:09]}  Nxe5 {[%clk 0:01:46]} 17. dxe5 {[%clk 0:02:07]}  Qxe5 {[%clk 0:01:46]} 18. Rb3 {[%clk 0:02:04]}  Qd5 {[%clk 0:01:46]} 19. Qa4 {[%clk 0:02:04]}  Ne4 {[%clk 0:01:39]} 20. f3 {[%clk 0:01:41]}  Nd2 {[%clk 0:01:30]} 21. Rd1 {[%clk 0:01:40]}  Qxb3 {[%clk 0:01:27]} 22. Qd4 {[%clk 0:00:09]}  Qxd1+ {[%clk 0:01:26]} 23. Kf2 {[%clk 0:00:08]}  Qf1+ {[%clk 0:01:25]} 24. Kg3 {[%clk 0:00:08]}  Qe1+ {[%clk 0:01:24]} 25. Kh3 {[%clk 0:00:05]}  e5 {[%clk 0:01:23]} 0-1


[Site "https://www.chess.com"]

[Event "Titled Tuesday Blitz February 28 Early 2023"]
[White "Migot, Tangi"]
[Black "Kiseleva, Arina"]
[WhiteFideId "662445"]
[BlackFideId "4164989"]
[WhiteElo "2554"]
[BlackElo "1756"]
[Result "1-0"]
[Round "01"]
[TimeControl "180+2"]
[Date "2023.02.28"]
[WhiteClock "0:01:37"]
[BlackClock "0:00:33"]

1. e4 {[%clk 0:03:00]}  c6 {[%clk 0:02:23]} 2. Nc3 {[%clk 0:02:59]}  d5 {[%clk 0:02:23]} 3. Qf3 {[%clk 0:02:59]}  dxe4 {[%clk 0:02:21]} 4. Nxe4 {[%clk 0:03:00]}  Nf6 {[%clk 0:02:21]} 5. Bc4 {[%clk 0:03:00]}  Nbd7 {[%clk 0:02:14]} 6. d4 {[%clk 0:02:52]}  e6 {[%clk 0:02:13]} 7. Ne2 {[%clk 0:02:38]}  Nxe4 {[%clk 0:02:13]} 8. Qxe4 {[%clk 0:02:39]}  Nf6 {[%clk 0:02:13]} 9. Qh4 {[%clk 0:02:37]}  Be7 {[%clk 0:02:13]} 10. Bd2 {[%clk 0:02:28]}  h6 {[%clk 0:02:11]} 11. O-O-O {[%clk 0:02:27]}  b5 {[%clk 0:01:59]} 12. Bd3 {[%clk 0:02:24]}  Bb7 {[%clk 0:01:48]} 13. Qg3 {[%clk 0:02:18]}  Kf8 {[%clk 0:01:35]} 14. h4 {[%clk 0:02:15]}  Bd6 {[%clk 0:01:33]} 15. Qh3 {[%clk 0:02:06]}  a5 {[%clk 0:01:30]} 16. g4 {[%clk 0:02:06]}  a4 {[%clk 0:01:29]} 17. f4 {[%clk 0:02:05]}  a3 {[%clk 0:01:28]} 18. b3 {[%clk 0:02:05]}  c5 {[%clk 0:01:27]} 19. g5 {[%clk 0:01:59]}  hxg5 {[%clk 0:01:27]} 20. fxg5 {[%clk 0:01:59]}  Nh5 {[%clk 0:01:15]} 21. Rhf1 {[%clk 0:01:55]}  Qc7 {[%clk 0:01:14]} 22. Bg6 {[%clk 0:01:47]}  Kg8 {[%clk 0:00:38]} 23. Bxf7+ {[%clk 0:01:38]}  Kh7 {[%clk 0:00:33]} 24. g6# {[%clk 0:01:37]} 1-0


[Site "https://www.chess.com"]

[Event "Titled Tuesday Blitz February 28 Early 2023"]
[White "Fiorito, Francisco"]
[Black "Tarnowska, Aleksandra"]
[WhiteFideId "180165"]
[BlackFideId "1180967"]
[WhiteElo "2341"]
[BlackElo "1776"]
[Result "1-0"]
[Round "01"]
[TimeControl "180+2"]
[Date "2023.02.28"]
[WhiteClock "0:01:19"]
[BlackClock "0:00:04"]

1. d4 {[%clk 0:02:59]}  d5 {[%clk 0:03:00]} 2. Nc3 {[%clk 0:02:59]}  e6 {[%clk 0:03:00]} 3. Bf4 {[%clk 0:02:59]}  c6 {[%clk 0:02:59]} 4. Nf3 {[%clk 0:02:58]}  Nf6 {[%clk 0:02:59]} 5. e3 {[%clk 0:02:55]}  Bd6 {[%clk 0:03:00]} 6. Bxd6 {[%clk 0:02:54]}  Qxd6 {[%clk 0:03:00]} 7. Bd3 {[%clk 0:02:55]}  Nbd7 {[%clk 0:02:50]} 8. O-O {[%clk 0:02:55]}  e5 {[%clk 0:02:49]} 9. dxe5 {[%clk 0:02:55]}  Nxe5 {[%clk 0:02:49]} 10. Nxe5 {[%clk 0:02:56]}  Qxe5 {[%clk 0:02:50]} 11. h3 {[%clk 0:02:56]}  O-O {[%clk 0:02:48]} 12. Qf3 {[%clk 0:02:56]}  Qg5 {[%clk 0:02:31]} 13. Rad1 {[%clk 0:02:52]}  Be6 {[%clk 0:02:24]} 14. Rfe1 {[%clk 0:02:46]}  Rad8 {[%clk 0:02:20]} 15. Ne2 {[%clk 0:02:43]}  Ne4 {[%clk 0:01:49]} 16. Nf4 {[%clk 0:02:30]}  Rfe8 {[%clk 0:01:30]} 17. Bxe4 {[%clk 0:02:26]}  dxe4 {[%clk 0:01:23]} 18. Qxe4 {[%clk 0:02:22]}  Bd5 {[%clk 0:00:58]} 19. Qb4 {[%clk 0:02:11]}  Re4 {[%clk 0:00:53]} 20. Rxd5 {[%clk 0:01:45]}  cxd5 {[%clk 0:00:45]} 21. Qxb7 {[%clk 0:01:44]}  Qe5 {[%clk 0:00:35]} 22. Rd1 {[%clk 0:01:40]}  d4 {[%clk 0:00:29]} 23. Qxa7 {[%clk 0:01:27]}  g5 {[%clk 0:00:12]} 24. Nd3 {[%clk 0:01:27]}  Qe7 {[%clk 0:00:09]} 25. Qxe7 {[%clk 0:01:26]}  Rxe7 {[%clk 0:00:10]} 26. exd4 {[%clk 0:01:27]}  Rxd4 {[%clk 0:00:09]} 27. Kf1 {[%clk 0:01:27]}  f6 {[%clk 0:00:09]} 28. b3 {[%clk 0:01:27]}  Ra7 {[%clk 0:00:09]} 29. a4 {[%clk 0:01:27]}  Rc7 {[%clk 0:00:09]} 30. Rd2 {[%clk 0:01:23]}  f5 {[%clk 0:00:08]} 31. Ke2 {[%clk 0:01:22]}  f4 {[%clk 0:00:07]} 32. f3 {[%clk 0:01:22]}  h5 {[%clk 0:00:07]} 33. Nf2 {[%clk 0:01:21]}  Re7+ {[%clk 0:00:07]} 34. Kd1 {[%clk 0:01:21]}  Rxd2+ {[%clk 0:00:05]} 35. Kxd2 {[%clk 0:01:22]}  Kf7 {[%clk 0:00:04]} 36. Ne4 {[%clk 0:01:22]}  Kg6 {[%clk 0:00:04]} 37. a5 {[%clk 0:01:22]}  Kf5 {[%clk 0:00:05]} 38. b4 {[%clk 0:01:22]}  g4 {[%clk 0:00:05]} 39. hxg4+ {[%clk 0:01:22]}  hxg4 {[%clk 0:00:05]} 40. b5 {[%clk 0:01:23]}  gxf3 {[%clk 0:00:06]} 41. gxf3 {[%clk 0:01:24]}  Rd7+ {[%clk 0:00:05]} 42. Ke2 {[%clk 0:01:24]}  Rd5 {[%clk 0:00:05]} 43. c4 {[%clk 0:01:24]}  Rd4 {[%clk 0:00:04]} 44. a6 {[%clk 0:01:19]}  Rxc4 {[%clk 0:00:04]} 45. Nd6+ {[%clk 0:01:19]} 1-0


[Site "https://www.chess.com"]

[Event "Titled Tuesday Blitz February 28 Early 2023"]
[White "Fabris, Alberto"]
[Black "Kopczynski, Michal"]
[WhiteFideId "801348"]
[BlackFideId "1124200"]
[WhiteElo "2118"]
[BlackElo "2212"]
[Result "0-1"]
[Round "01"]
[TimeControl "180+2"]
[Date "2023.02.28"]
[WhiteClock "0:00:01"]
[BlackClock "0:00:07"]

1. e4 {[%clk 0:03:00]}  b6 {[%clk 0:02:59]} 2. d4 {[%clk 0:02:59]}  Bb7 {[%clk 0:03:00]} 3. Bd3 {[%clk 0:03:00]}  e6 {[%clk 0:03:00]} 4. Nf3 {[%clk 0:03:00]}  Nf6 {[%clk 0:03:01]} 5. Qe2 {[%clk 0:02:59]}  d5 {[%clk 0:03:02]} 6. e5 {[%clk 0:02:59]}  Nfd7 {[%clk 0:03:02]} 7. O-O {[%clk 0:02:58]}  c5 {[%clk 0:03:02]} 8. c3 {[%clk 0:02:57]}  Nc6 {[%clk 0:03:03]} 9. a3 {[%clk 0:02:54]}  Qc7 {[%clk 0:03:03]} 10. b4 {[%clk 0:02:49]}  c4 {[%clk 0:03:03]} 11. Bc2 {[%clk 0:02:48]}  O-O-O {[%clk 0:03:03]} 12. a4 {[%clk 0:02:48]}  h6 {[%clk 0:03:04]} 13. Na3 {[%clk 0:02:44]}  Re8 {[%clk 0:03:02]} 14. Nb5 {[%clk 0:02:39]}  Qb8 {[%clk 0:03:01]} 15. a5 {[%clk 0:02:37]}  a6 {[%clk 0:03:01]} 16. Nd6+ {[%clk 0:02:33]}  Bxd6 {[%clk 0:03:00]} 17. exd6 {[%clk 0:02:33]}  b5 {[%clk 0:02:52]} 18. Bf4 {[%clk 0:02:29]}  f6 {[%clk 0:02:48]} 19. Bg6 {[%clk 0:02:26]}  e5 {[%clk 0:02:42]} 20. Bxe8 {[%clk 0:02:24]}  Rxe8 {[%clk 0:02:43]} 21. dxe5 {[%clk 0:02:22]}  fxe5 {[%clk 0:02:44]} 22. Bg3 {[%clk 0:02:17]}  Qxd6 {[%clk 0:02:43]} 23. Rad1 {[%clk 0:02:10]}  Qe6 {[%clk 0:02:26]} 24. Rfe1 {[%clk 0:02:05]}  g5 {[%clk 0:02:01]} 25. h3 {[%clk 0:02:04]}  g4 {[%clk 0:01:53]} 26. hxg4 {[%clk 0:02:02]}  Qxg4 {[%clk 0:01:53]} 27. Qc2 {[%clk 0:01:54]}  e4 {[%clk 0:01:30]} 28. Nd4 {[%clk 0:01:49]}  Nce5 {[%clk 0:01:29]} 29. Qe2 {[%clk 0:01:34]}  Qg6 {[%clk 0:01:23]} 30. Qe3 {[%clk 0:01:26]}  Nd3 {[%clk 0:01:10]} 31. Rf1 {[%clk 0:01:23]}  N7e5 {[%clk 0:00:59]} 32. Bxe5 {[%clk 0:01:17]}  Rxe5 {[%clk 0:00:53]} 33. Qh3+ {[%clk 0:01:15]}  Kd8 {[%clk 0:00:36]} 34. f4 {[%clk 0:01:00]}  Rh5 {[%clk 0:00:28]} 35. Qe6 {[%clk 0:00:48]}  Qxe6 {[%clk 0:00:26]} 36. Nxe6+ {[%clk 0:00:48]}  Ke7 {[%clk 0:00:26]} 37. Nd4 {[%clk 0:00:39]}  Bc8 {[%clk 0:00:25]} 38. g3 {[%clk 0:00:32]}  Bg4 {[%clk 0:00:22]} 39. Rd2 {[%clk 0:00:31]}  Kf6 {[%clk 0:00:20]} 40. Rh2 {[%clk 0:00:30]}  Rxh2 {[%clk 0:00:19]} 41. Kxh2 {[%clk 0:00:30]}  e3 {[%clk 0:00:19]} 42. Kg2 {[%clk 0:00:21]}  e2 {[%clk 0:00:20]} 43. Nxe2 {[%clk 0:00:21]}  Bxe2 {[%clk 0:00:21]} 44. Rh1 {[%clk 0:00:20]}  h5 {[%clk 0:00:21]} 45. Rb1 {[%clk 0:00:16]}  Bg4 {[%clk 0:00:20]} 46. Rh1 {[%clk 0:00:14]}  Kg6 {[%clk 0:00:20]} 47. Rb1 {[%clk 0:00:13]}  Bf5 {[%clk 0:00:20]} 48. Ra1 {[%clk 0:00:11]}  Be4+ {[%clk 0:00:20]} 49. Kf1 {[%clk 0:00:11]}  Kf5 {[%clk 0:00:20]} 50. Ke2 {[%clk 0:00:11]}  Kg4 {[%clk 0:00:20]} 51. Ke3 {[%clk 0:00:11]}  Kf5 {[%clk 0:00:16]} 52. Kd4 {[%clk 0:00:10]}  Nf2 {[%clk 0:00:13]} 53. Kc5 {[%clk 0:00:09]}  Kg4 {[%clk 0:00:09]} 54. Rg1 {[%clk 0:00:07]}  Nh3 {[%clk 0:00:08]} 55. Rc1 {[%clk 0:00:05]}  Kxg3 {[%clk 0:00:09]} 56. Kb6 {[%clk 0:00:05]}  Nxf4 {[%clk 0:00:09]} 57. Kxa6 {[%clk 0:00:05]}  h4 {[%clk 0:00:10]} 58. Kxb5 {[%clk 0:00:05]}  Ne2 {[%clk 0:00:10]} 59. Re1 {[%clk 0:00:04]}  Nxc3+ {[%clk 0:00:10]} 60. Kc5 {[%clk 0:00:03]}  Na4+ {[%clk 0:00:10]} 61. Kb5 {[%clk 0:00:02]}  Nc3+ {[%clk 0:00:09]} 62. Kc5 {[%clk 0:00:03]}  h3 {[%clk 0:00:09]} 63. a6 {[%clk 0:00:03]}  h2 {[%clk 0:00:08]} 64. a7 {[%clk 0:00:03]}  d4 {[%clk 0:00:08]} 65. Kxc4 {[%clk 0:00:01]}  h1=Q {[%clk 0:00:07]} 0-1


[Site "https://www.chess.com"]

[Event "Titled Tuesday Blitz February 28 Early 2023"]
[White "Di Nicolantonio, Lucas"]
[Black "Gurevich, Ilya"]
[WhiteFideId "680460"]
[BlackFideId "2000628"]
[WhiteElo "2358"]
[BlackElo "2106"]
[Result "1-0"]
[Round "01"]
[TimeControl "180+2"]
[Date "2023.02.28"]
[WhiteClock "0:00:49"]
[BlackClock "0:00:23"]

1. e4 {[%clk 0:02:58]}  c5 {[%clk 0:03:00]} 2. Nf3 {[%clk 0:02:58]}  e6 {[%clk 0:03:00]} 3. d4 {[%clk 0:02:58]}  cxd4 {[%clk 0:03:01]} 4. Nxd4 {[%clk 0:02:59]}  Nf6 {[%clk 0:03:02]} 5. Nc3 {[%clk 0:02:59]}  Nc6 {[%clk 0:03:03]} 6. a3 {[%clk 0:02:57]}  Bc5 {[%clk 0:03:02]} 7. Be3 {[%clk 0:02:55]}  Qb6 {[%clk 0:03:01]} 8. Na4 {[%clk 0:02:40]}  Qa5+ {[%clk 0:03:01]} 9. c3 {[%clk 0:02:40]}  Bxd4 {[%clk 0:03:01]} 10. b4 {[%clk 0:02:35]}  Qe5 {[%clk 0:02:41]} 11. cxd4 {[%clk 0:02:34]}  Qxe4 {[%clk 0:02:40]} 12. Nc3 {[%clk 0:02:16]}  Qg6 {[%clk 0:02:36]} 13. h4 {[%clk 0:01:54]}  d5 {[%clk 0:02:16]} 14. h5 {[%clk 0:01:50]}  Qg4 {[%clk 0:02:13]} 15. Be2 {[%clk 0:01:48]}  Qxg2 {[%clk 0:02:13]} 16. Bf3 {[%clk 0:01:49]}  Qxh1+ {[%clk 0:02:04]} 17. Bxh1 {[%clk 0:01:49]}  a6 {[%clk 0:02:01]} 18. h6 {[%clk 0:01:50]}  g6 {[%clk 0:02:00]} 19. Bg5 {[%clk 0:01:40]}  Nd7 {[%clk 0:02:00]} 20. b5 {[%clk 0:01:36]}  Na5 {[%clk 0:01:57]} 21. Qe2 {[%clk 0:01:30]}  O-O {[%clk 0:01:39]} 22. Be7 {[%clk 0:01:30]}  Re8 {[%clk 0:01:37]} 23. Bb4 {[%clk 0:01:29]}  Nb3 {[%clk 0:01:24]} 24. Rd1 {[%clk 0:01:25]}  e5 {[%clk 0:01:14]} 25. Nxd5 {[%clk 0:01:21]}  a5 {[%clk 0:00:54]} 26. Bd6 {[%clk 0:01:10]}  Re6 {[%clk 0:00:46]} 27. dxe5 {[%clk 0:01:06]}  Nbc5 {[%clk 0:00:26]} 28. Nc7 {[%clk 0:00:58]}  Ra7 {[%clk 0:00:26]} 29. Bxc5 {[%clk 0:00:49]}  Nxc5 {[%clk 0:00:23]} 30. Rd8+ {[%clk 0:00:49]} 1-0


[Site "https://www.chess.com"]

[Event "Titled Tuesday Blitz February 28 Early 2023"]
[White "Levine, David"]
[Black "Poltorak, Sebastian"]
[WhiteFideId "2011611"]
[BlackFideId "1199498"]
[WhiteElo "2104"]
[BlackElo "2195"]
[Result "1-0"]
[Round "01"]
[TimeControl "180+2"]
[Date "2023.02.28"]
[WhiteClock "0:01:04"]
[BlackClock "0:00:04"]

1. d4 {[%clk 0:02:59]}  Nf6 {[%clk 0:02:49]} 2. c4 {[%clk 0:02:58]}  g6 {[%clk 0:02:50]} 3. g3 {[%clk 0:02:58]}  Bg7 {[%clk 0:02:50]} 4. Bg2 {[%clk 0:02:58]}  d6 {[%clk 0:02:50]} 5. Nf3 {[%clk 0:02:57]}  O-O {[%clk 0:02:50]} 6. O-O {[%clk 0:02:57]}  Nbd7 {[%clk 0:02:43]} 7. Nc3 {[%clk 0:02:57]}  e5 {[%clk 0:02:44]} 8. e4 {[%clk 0:02:57]}  c6 {[%clk 0:02:44]} 9. h3 {[%clk 0:02:56]}  Qe7 {[%clk 0:02:15]} 10. Re1 {[%clk 0:02:52]}  a6 {[%clk 0:02:15]} 11. Be3 {[%clk 0:02:44]}  b6 {[%clk 0:01:13]} 12. Qc2 {[%clk 0:02:37]}  Bb7 {[%clk 0:00:56]} 13. Rad1 {[%clk 0:02:34]}  Rfd8 {[%clk 0:00:56]} 14. dxe5 {[%clk 0:02:11]}  Nxe5 {[%clk 0:00:54]} 15. b3 {[%clk 0:02:02]}  b5 {[%clk 0:00:53]} 16. Nxe5 {[%clk 0:01:47]}  dxe5 {[%clk 0:00:48]} 17. Bf1 {[%clk 0:01:42]}  Rxd1 {[%clk 0:00:46]} 18. Rxd1 {[%clk 0:01:42]}  Rd8 {[%clk 0:00:47]} 19. c5 {[%clk 0:01:34]}  Bf8 {[%clk 0:00:37]} 20. b4 {[%clk 0:01:33]}  Qe6 {[%clk 0:00:34]} 21. Rxd8 {[%clk 0:01:29]}  Kg7 {[%clk 0:00:15]} 22. Qd2 {[%clk 0:01:28]}  Ng8 {[%clk 0:00:09]} 23. Qd7 {[%clk 0:01:16]}  Qxd7 {[%clk 0:00:07]} 24. Rxd7 {[%clk 0:01:16]}  Bc8 {[%clk 0:00:08]} 25. Rc7 {[%clk 0:01:15]}  Ne7 {[%clk 0:00:06]} 26. a4 {[%clk 0:01:09]}  bxa4 {[%clk 0:00:03]} 27. Nxa4 {[%clk 0:01:08]}  Kf6 {[%clk 0:00:04]} 28. f4 {[%clk 0:01:04]}  Bf5 {[%clk 0:00:04]} 1-0


[Site "https://www.chess.com"]

[Event "Titled Tuesday Blitz February 28 Early 2023"]
[White "Kislov, Oleg"]
[Black "Chemin, Justo Reinaldo"]
[WhiteFideId "13503774"]
[BlackFideId "2101580"]
[WhiteElo "2186"]
[BlackElo "1940"]
[Result "1-0"]
[Round "01"]
[TimeControl "180+2"]
[Date "2023.02.28"]
[WhiteClock "0:00:06"]
[BlackClock "0:00:01"]

1. e4 {[%clk 0:02:59]}  e6 {[%clk 0:02:58]} 2. d4 {[%clk 0:02:59]}  d5 {[%clk 0:02:59]} 3. Nc3 {[%clk 0:02:58]}  Bb4 {[%clk 0:02:54]} 4. exd5 {[%clk 0:02:57]}  exd5 {[%clk 0:02:53]} 5. Bd3 {[%clk 0:02:57]}  Nf6 {[%clk 0:02:48]} 6. Ne2 {[%clk 0:02:56]}  O-O {[%clk 0:02:47]} 7. Bg5 {[%clk 0:02:54]}  h6 {[%clk 0:02:46]} 8. Bh4 {[%clk 0:02:53]}  c6 {[%clk 0:02:40]} 9. O-O {[%clk 0:02:39]}  Re8 {[%clk 0:02:40]} 10. f3 {[%clk 0:02:30]}  Nbd7 {[%clk 0:02:26]} 11. Qd2 {[%clk 0:02:27]}  Nf8 {[%clk 0:02:22]} 12. Rae1 {[%clk 0:02:01]}  Bd7 {[%clk 0:02:06]} 13. Ng3 {[%clk 0:01:45]}  Rxe1 {[%clk 0:01:29]} 14. Rxe1 {[%clk 0:01:43]}  g5 {[%clk 0:01:18]} 15. Bxg5 {[%clk 0:01:42]}  hxg5 {[%clk 0:01:18]} 16. Qxg5+ {[%clk 0:01:42]}  Kh8 {[%clk 0:01:16]} 17. Nh5 {[%clk 0:01:07]}  Nxh5 {[%clk 0:01:04]} 18. Qxh5+ {[%clk 0:01:07]}  Kg7 {[%clk 0:01:01]} 19. f4 {[%clk 0:00:43]}  Qf6 {[%clk 0:00:45]} 20. Re5 {[%clk 0:00:32]}  Ng6 {[%clk 0:00:35]} 21. Bxg6 {[%clk 0:00:22]}  fxg6 {[%clk 0:00:24]} 22. Qf3 {[%clk 0:00:22]}  Rf8 {[%clk 0:00:22]} 23. Ne2 {[%clk 0:00:20]}  Bd6 {[%clk 0:00:17]} 24. Re3 {[%clk 0:00:20]}  c5 {[%clk 0:00:16]} 25. c3 {[%clk 0:00:20]}  cxd4 {[%clk 0:00:15]} 26. Nxd4 {[%clk 0:00:20]}  Bxf4 {[%clk 0:00:15]} 27. Re1 {[%clk 0:00:19]}  Qg5 {[%clk 0:00:09]} 28. g3 {[%clk 0:00:17]}  Bd6 {[%clk 0:00:07]} 29. Qg2 {[%clk 0:00:13]}  Bc5 {[%clk 0:00:07]} 30. Rd1 {[%clk 0:00:09]}  Bxd4+ {[%clk 0:00:06]} 31. cxd4 {[%clk 0:00:08]}  Qe3+ {[%clk 0:00:06]} 32. Kh1 {[%clk 0:00:08]}  Rf2 {[%clk 0:00:04]} 33. Qxd5 {[%clk 0:00:07]}  Bc6 {[%clk 0:00:01]} 34. Qxc6 {[%clk 0:00:06]} 1-0


[Site "https://www.chess.com"]

[Event "Titled Tuesday Blitz February 28 Early 2023"]
[White "Larina, Maria"]
[Black "Martin Duque, Jesus"]
[WhiteFideId "24113182"]
[BlackFideId "2208954"]
[WhiteElo "1848"]
[BlackElo "2305"]
[Result "0-1"]
[Round "01"]
[TimeControl "180+2"]
[Date "2023.02.28"]
[WhiteClock "0:00:10"]
[BlackClock "0:00:14"]

1. e4 {[%clk 0:03:00]}  c5 {[%clk 0:02:19]} 2. Nc3 {[%clk 0:03:00]}  Nc6 {[%clk 0:02:00]} 3. g3 {[%clk 0:03:00]}  g6 {[%clk 0:02:00]} 4. Bg2 {[%clk 0:03:00]}  d6 {[%clk 0:02:00]} 5. d3 {[%clk 0:02:59]}  Nf6 {[%clk 0:02:00]} 6. Be3 {[%clk 0:02:58]}  Ng4 {[%clk 0:01:59]} 7. Bg5 {[%clk 0:02:54]}  h6 {[%clk 0:01:50]} 8. Bd2 {[%clk 0:02:50]}  Bg7 {[%clk 0:01:50]} 9. h3 {[%clk 0:02:50]}  Nf6 {[%clk 0:01:44]} 10. f4 {[%clk 0:02:47]}  Rb8 {[%clk 0:01:43]} 11. Nf3 {[%clk 0:02:37]}  Nd7 {[%clk 0:01:42]} 12. O-O {[%clk 0:02:34]}  b5 {[%clk 0:01:43]} 13. e5 {[%clk 0:01:29]}  dxe5 {[%clk 0:01:26]} 14. Nh4 {[%clk 0:01:29]}  Nd4 {[%clk 0:01:21]} 15. f5 {[%clk 0:01:24]}  g5 {[%clk 0:01:14]} 16. Nf3 {[%clk 0:01:21]}  Nxf5 {[%clk 0:01:14]} 17. Ne4 {[%clk 0:01:14]}  Nd6 {[%clk 0:01:12]} 18. Qe2 {[%clk 0:01:08]}  Bb7 {[%clk 0:01:10]} 19. Nxd6+ {[%clk 0:01:07]}  exd6 {[%clk 0:01:09]} 20. c3 {[%clk 0:00:52]}  O-O {[%clk 0:01:01]} 21. Kh2 {[%clk 0:00:51]}  f5 {[%clk 0:01:01]} 22. Rae1 {[%clk 0:00:33]}  d5 {[%clk 0:00:58]} 23. Ng1 {[%clk 0:00:27]}  a6 {[%clk 0:00:48]} 24. Qf2 {[%clk 0:00:23]}  Qc7 {[%clk 0:00:42]} 25. Re2 {[%clk 0:00:18]}  Rbe8 {[%clk 0:00:40]} 26. Rfe1 {[%clk 0:00:18]}  e4 {[%clk 0:00:39]} 27. dxe4 {[%clk 0:00:17]}  fxe4 {[%clk 0:00:33]} 28. Qe3 {[%clk 0:00:17]}  Ne5 {[%clk 0:00:30]} 29. Rf1 {[%clk 0:00:14]}  d4 {[%clk 0:00:30]} 30. cxd4 {[%clk 0:00:14]}  cxd4 {[%clk 0:00:30]} 31. Qb3+ {[%clk 0:00:14]}  Kh8 {[%clk 0:00:27]} 32. Bb4 {[%clk 0:00:14]}  Rxf1 {[%clk 0:00:25]} 33. Bxf1 {[%clk 0:00:15]}  Nf3+ {[%clk 0:00:25]} 34. Nxf3 {[%clk 0:00:15]}  d3 {[%clk 0:00:21]} 35. Re1 {[%clk 0:00:14]}  Qc6 {[%clk 0:00:14]} 36. Nd2 {[%clk 0:00:12]}  e3 {[%clk 0:00:15]} 37. Nf3 {[%clk 0:00:10]}  Qxf3 {[%clk 0:00:14]} 0-1


[Site "https://www.chess.com"]